Cogmind - Beta 17 @@@ ROGUE MODE // 2026.07.18 @ 20:11:50 Player: LanceLander Result: Destroyed by B-75 Beast with Heavy Plasma Cannon Performance ------------- Evolutions (4) 2000 Regions Visited (10) 2000 Robots Destroyed (79) 395 Value Destroyed (2953) 2953 Prototype IDs (23) 460 Alien Tech Used (0) 0 Bonus (1954) 1954 TOTAL SCORE: 9762 Bonus ------- Follower Combat Kills 1154 Registered with UFD 300 Met R17 at Cetus 500 Cogmind --------- Core Integrity 0/850 Matter 295/300 Energy 400/400 System Corruption 6% Temperature Cool (78) Movement Immobile (Siege) Location -6/Hub_04(d) Parts ------- > --- POWER (2) -------- Light Angular Momentum Engine Quantum Reactor > --- PROPULSION (4) --- Centrium Heavy Treads Centrium Heavy Treads > --- UTILITY (6) ------ Medium Storage Unit Experimental Signal Interpreter Improved Melee Analysis Suite Actuator Array Centrium Medium Armor Plating Centrium Medium Armor Plating > --- WEAPON (3) ------- Advanced Variable Charge Gun Mace > --- INVENTORY (10) --- Quantum Reactor Centrium Heavy Treads Advanced Heat Sink Surveybot 17 Chip Improved Light Armor Plating Improved Medium Armor Plating Centrium Medium Armor Plating Centrium Medium Armor Plating Peak State ------------ > --- POWER ------------ Light Angular Momentum Engine Quantum Reactor > --- PROPULSION ------- Centrium Heavy Treads Centrium Heavy Treads > --- UTILITY ---------- Medium Storage Unit Experimental Signal Interpreter Improved Melee Analysis Suite Actuator Array Centrium Medium Armor Plating Centrium Medium Armor Plating > --- WEAPON ----------- Advanced Variable Charge Gun Mace Ripper > --- INVENTORY -------- Quantum Reactor Centrium Heavy Treads Advanced Heat Sink Surveybot 17 Chip Improved Light Armor Plating Improved Medium Armor Plating Centrium Medium Armor Plating Centrium Medium Armor Plating [Rating: 104] Favorites ----------- Power Improved Ion Engine Engine Improved Ion Engine Power Core Light Nuclear Core Reactor Quantum Reactor Propulsion Improved Aluminum Leg Treads Centrium Heavy Treads Leg Improved Aluminum Leg Wheel Wheel Utility Medium Storage Unit Device Scrap Suit Storage Medium Storage Unit Processor Experimental Signal Interpreter Protection Improved Light Armor Plating Weapon Mace Energy Gun Medium Laser Ballistic Gun Heavy Assault Rifle Ballistic Cannon Light Cannon Launcher Precision Rocket Launcher Impact Weapon Mace Slashing Weapon Chainsword Build | -11 -10 -9 -9 -9 -9 -6 -6 -6 -6 -6 ------- Run | Yrd Mat Mat Sto Rec Scr Fac Ext Cet Arc Hub Slots Evolved 8 | . . 2 . . . 6 . . . . Power 1 | . . . . . . 1 . . . . Propulsion 2 | . . 1 . . . 1 . . . . Utility 4 | . . 1 . . . 3 . . . . Weapon 1 | . . . . . . 1 . . . . Parts Attached 93 | 7 10 13 10 3 6 8 21 14 . 1 Power 17 | 1 2 . 2 1 1 2 3 5 . . Engine 9 | 1 . . 2 1 1 . 3 1 . . Core 4 | . 2 . . . . 1 . 1 . . Reactor 4 | . . . . . . 1 . 3 . . Propulsion 32 | 2 2 6 2 1 3 2 10 4 . . Treads 5 | . 2 . 1 . . . . 2 . . Leg 25 | . . 6 1 1 3 2 10 2 . . Wheel 2 | 2 . . . . . . . . . . Hover . | . . . . . . . . . . . Flight . | . . . . . . . . . . . Utility 25 | 2 3 2 2 1 2 3 5 5 . . Device 8 | 1 2 . . . . 1 3 1 . . Storage 2 | 1 1 . . . . . . . . . Processor 3 | . . 1 . . 1 1 . . . . Hackware . | . . . . . . . . . . . Protection 12 | . . 1 2 1 1 1 2 4 . . Artifact . | . . . . . . . . . . . Weapon 19 | 2 3 5 4 . . 1 3 . . 1 Energy Gun 6 | 2 . 3 . . . . . . . 1 Energy Cannon . | . . . . . . . . . . . Ballistic Gun 3 | . 1 1 1 . . . . . . . Ballistic Cannon 2 | . 2 . . . . . . . . . Launcher 2 | . . . . . . . 2 . . . Special Weapon . | . . . . . . . . . . . Impact Weapon 5 | . . 1 3 . . 1 . . . . Slashing Weapon 1 | . . . . . . . 1 . . . Piercing Weapon . | . . . . . . . . . . . Special Melee Weapon . | . . . . . . . . . . . Unidentified Prototypes 7 | . . . 2 . . 1 1 2 . 1 Corrupted Parts 2 | . . . . . 1 . 1 . . . System Corruption 8 | . . . . . 2 . 6 . . . Parts Lost 37 | . 2 3 5 3 . . 14 8 . 2 Power 7 | . 1 . 1 1 . . 2 2 . . Propulsion 13 | . 1 1 2 1 . . 6 2 . . Utility 10 | . . 1 2 1 . . 3 3 . . Weapon 7 | . . 1 . . . . 3 1 . 2 Highest Loss Streak 7 | . 1 2 2 3 . . 7 4 . 1 To Critical Strikes 1 | . . 1 . . . . . . . . Average Backups 9 | 5 7 8 9 9 9 7 8 9 9 8 Power . | 1 . . . . 1 . . 1 1 1 Propulsion 2 | 2 3 5 5 3 2 . 1 1 1 1 Utility 2 | . . . . . 2 3 4 4 5 6 Weapon 2 | . 2 1 2 4 2 2 2 1 1 . Tool/Special . | . . . . . . . . . . . Unused Backups 31 | . 4 2 1 . 8 2 4 3 2 5 Power 5 | . 1 . . . . . 1 1 2 . Propulsion 8 | . 2 1 1 . 2 . 1 . . 1 Utility 10 | . . . . . 2 . 2 2 . 4 Weapon 7 | . 1 1 . . 4 1 . . . . Tool/Special 1 | . . . . . . 1 . . . . Average Slot Usage (%) 94 | . 89 98 99 88 100 92 92 87 86 86 Engine 8 | . 9 . 9 5 11 6 8 2 6 6 Core 1 | . 4 11 1 . . 5 . 4 . . Reactor 1 | . . . . . . . 3 4 6 6 Treads 3 | . 21 1 6 . . . . 11 13 13 Leg 23 | . . 28 26 32 33 25 23 3 . . Device 4 | . 6 12 4 . . 5 8 11 6 6 Storage 9 | . 14 11 11 11 11 6 6 6 6 6 Processor 10 | . . . 11 11 11 12 13 13 13 13 Protection 7 | . . 9 5 5 11 6 7 7 13 13 Energy Gun 1 | . 12 6 2 . . . . . . 3 Ballistic Cannon 1 | . 10 13 . . . . . . . . Impact Weapon 13 | . . . 15 22 22 17 5 1 6 6 Slashing Weapon 3 | . . . . . . 1 12 13 13 8 Peak Build Rating 104 | 7 12 17 18 18 30 62 72 101 101 104 Average Rating 36 | 4 7 15 16 15 22 53 65 93 101 103 On Entrance 39 | . 7 12 16 18 16 30 62 72 101 101 Avg Prop Armor Cover (%) 10 | . 10 8 11 . . . . 8 . . Naked Turns . | . . . . . . . . . . . Heaviest Build 68 | 15 22 25 27 27 26 45 56 66 66 68 Greatest Support 160 | 20 40 39 39 39 46 66 85 160 160 160 Greatest Overweight (x) 4 | . 4 2 1 1 . . 1 . . . Average Overweight (x) . | . . . . . . . . . . . Largest Inventory Capacity 10 | 8 10 10 10 10 10 10 10 10 10 10 Average Capacity 9 | 7 8 10 10 10 10 10 10 10 10 10 Most Carried 10 | 7 10 10 10 10 10 10 10 10 10 10 Average Carried 9 | 5 7 8 9 9 9 7 8 9 10 9 Final Capacity 10 | 8 10 10 10 10 10 10 10 10 10 10 Final Carried 10 | 6 9 10 9 10 10 10 10 10 10 9 Scrap Suit Usage (%) 14 | . . . . . . 98 44 . . . Parts Cannibalized 11 | . . . . . . 2 9 . . . Class Distribution -------------------- 61% | Mutant 16% | Scavenger-Gladiator 10% | Gladiator 6% | Commander-Gladiator 4% | Scavenger-Mutant Dominant Class ---------------- Mutant | -10/Materials Scavenger-Mutant | -9/Materials Mutant | -9/Storage Mutant | -9/Recycling Mutant | -9/Scraptown Gladiator | -6/Factory Scavenger-Gladiator | -6/Extension Scavenger-Gladiator | -6/Cetus Scavenger-Gladiator | -6/Archives Scavenger-Gladiator | -6/Hub_04(d) Resources | -11 -10 -9 -9 -9 -9 -6 -6 -6 -6 -6 ----------- Run | Yrd Mat Mat Sto Rec Scr Fac Ext Cet Arc Hub Matter Collected 1936 | 250 389 265 339 30 50 90 352 164 7 . Remotely . | . . . . . . . . . . . Salvage Created 2789 | 177 457 269 423 133 . 275 570 198 287 . Parts 133 | 10 28 26 15 3 . 9 22 10 10 . Haulers Intercepted 3 | . 1 1 1 . . . . . . . Recyclers Shooed . | . . . . . . . . . . . Parts Field Recycled . | . . . . . . . . . . . Retrieved Matter . | . . . . . . . . . . . Parts Self-Destructed . | . . . . . . . . . . . Prevented . | . . . . . . . . . . . Parts Restored . | . . . . . . . . . . . Kills | -11 -10 -9 -9 -9 -9 -6 -6 -6 -6 -6 ------- Run | Yrd Mat Mat Sto Rec Scr Fac Ext Cet Arc Hub Combat Hostiles Destroyed 67 | . 14 12 9 3 . 10 12 3 4 . Melee 20 | . . . 3 1 . 5 5 2 4 . Guns 7 | . 2 2 3 . . . . . . . Cannons 20 | . 10 10 . . . . . . . . AOE 3 | . . . . . . . 3 . . . Classes Destroyed 10 | 2 4 1 . . . 2 1 . . . Tunneler 4 | 4 . . . . . . . . . . Hauler 3 | . 1 1 1 . . . . . . . Recycler 1 | 1 . . . . . . . . . . Operator 2 | . 1 . . . . . 1 . . . Watcher 2 | . . . . . . 1 1 . . . Swarmer 21 | . 3 7 . . . 8 3 . . . Grunt 19 | . 11 2 3 . . . 3 . . . Sentry 22 | . . 3 6 3 . 1 5 . 4 . Hunter 1 | . . . . . . . 1 . . . Programmer 1 | . . . . . . 1 . . . . Cetus Guard 3 | . . . . . . . . 3 . . Best Kill Streak 5 | 5 3 4 2 2 . 4 3 2 2 . Combat Bots Only 4 | . 3 4 2 2 . 4 3 2 2 . Max Kills in Single Turn 2 | 1 1 1 1 1 . 1 2 1 1 . Gunslinging . | . . . . . . . . . . . Exploded 2 | . . . . . . . 2 . . . Melee 1 | . . . 1 1 . 1 1 1 1 . Uniques/NPCs Destroyed . | . . . . . . . . . . . Combat | -11 -10 -9 -9 -9 -9 -6 -6 -6 -6 -6 -------- Run | Yrd Mat Mat Sto Rec Scr Fac Ext Cet Arc Hub Hostile Shots Fired 799 | . 57 65 78 34 . 77 335 79 41 33 Missed 244 | . 15 24 14 11 . 30 102 26 12 10 Hits 555 | . 42 41 64 23 . 47 233 53 29 23 Projectile 555 | . 42 41 64 23 . 47 233 53 29 23 Critical Strikes 17 | . 1 2 3 1 . 1 2 4 3 . Damage Taken 8289 | . 498 405 885 344 . 713 2794 1333 696 621 Core 1230 | . 68 9 233 65 . 47 435 226 19 128 Absorbed by Shields . | . . . . . . . . . . . Regen/Repaired (Parts) 380 | . . . . . 286 20 74 . . . Core Remaining (%) 65 | 100 72 . . . 23 . . . . . Volleys Fired 101 | 9 42 31 14 . . . 3 . . 2 Largest 2 | 2 2 2 2 . . . 1 . . 1 Hottest 95 | 90 90 95 79 . . . 43 . . 80 Shots Fired 197 | 18 84 62 28 . . . 3 . . 2 Gun 88 | 18 34 6 28 . . . . . . 2 Cannon 106 | . 50 56 . . . . . . . . Launcher 3 | . . . . . . . 3 . . . Special . | . . . . . . . . . . . Kinetic 130 | . 60 56 14 . . . . . . . Thermal 48 | 9 17 6 14 . . . . . . 2 Explosive 3 | . . . . . . . 3 . . . Electromagnetic 16 | 9 7 . . . . . . . . . Robot Hit Streak 13 | 3 11 10 13 . . . 1 . . 3 Robot Miss Streak 4 | 2 4 3 2 . . . 2 . . . Penetration Max . | . . . . . . . . . . . Secondary Targets . | . . . . . . . . . . . Shots Hit Robots 301 | 9 53 38 50 14 . 26 59 18 22 12 Core Hits 90 | 5 21 16 10 1 . 4 15 8 9 1 Critical Kills 1 | . . . 1 . . . . . . . Critical Parts Destroyed 15 | . . . 7 . . 5 1 1 1 . Critical Strikes 45 | 1 3 4 9 . . 5 12 5 4 2 Burn 5 | 1 2 1 1 . . . . . . . Blast 4 | . 1 3 . . . . . . . . Smash 16 | . . . 8 . . 5 1 1 1 . Sever 20 | . . . . . . . 11 4 3 2 Melee Attacks 261 | . . 1 72 14 . 35 81 26 22 10 Impact 168 | . . 1 72 14 . 35 31 2 9 4 Slashing 93 | . . . . . . . 50 24 13 6 Piercing . | . . . . . . . . . . . Sneak Attacks 4 | . . . 1 2 . . 1 . . . Combat Hostiles . | . . . . . . . . . . . Follow-up Attacks 56 | . . . 5 2 . 9 23 5 9 3 Damage Inflicted 8335 | 124 820 689 1080 371 . 955 2547 663 712 374 Guns 871 | 124 299 97 295 . . . . . . 56 Cannons 1110 | . 518 592 . . . . . . . . Explosions 336 | . . . . . . . 336 . . . Melee 6015 | . . . 785 371 . 955 2211 663 712 318 Ramming 3 | . 3 . . . . . . . . . Kinetic 1354 | . 613 592 149 . . . . . . . Thermal 490 | 39 152 97 146 . . . . . . 56 Explosive 336 | . . . . . . . 336 . . . Electromagnetic 137 | 85 52 . . . . . . . . . Impact 3428 | . . . 785 371 . 955 930 45 229 113 Slashing 2587 | . . . . . . . 1281 618 483 205 Piercing . | . . . . . . . . . . . Highest Corruption 6 | . . . . . 2 4 6 6 6 6 Average Corruption 5 | . . . . . 2 3 5 6 6 6 Corruption Purged 5 | . . . . . . . 5 . . . Corruption Blocked . | . . . . . . . . . . . Effects 51 | . . . . . . 7 19 15 9 1 Message Errors 12 | . . . . . . 2 2 3 4 1 Matter Fused 14 | . . . . . . 1 7 5 1 . Heat Flow Errors 6 | . . . . . . 1 1 2 2 . Energy Discharges 4 | . . . . . . 1 2 . 1 . Data Loss (minor) 10 | . . . . . . 2 6 2 . . Data Loss (major) 3 | . . . . . . . 1 1 1 . Alerts 2 | . . . . . . . . 2 . . Overload Shots . | . . . . . . . . . . . Overflow Damage 906 | . 5 . 280 14 . 373 196 18 20 . Projectiles 5 | . 5 . . . . . . . . . Explosions 28 | . . . . . . . 28 . . . Melee 873 | . . . 280 14 . 373 168 18 20 . Knockbacks 26 | . 12 8 1 . . 3 2 . . . Impact 5 | . . . 1 . . 2 2 . . . Kinetic 17 | . 10 7 . . . . . . . . Secondary 4 | . 2 1 . . . 1 . . . . Self-Inflicted Damage 113 | . . . . . . . 113 . . . Shots 2 | . . . . . . . 2 . . . Rammed 1 | . 1 . . . . . . . . . Targets Rammed 1 | . 1 . . . . . . . . . Kicked . | . . . . . . . . . . . Crushed . | . . . . . . . . . . . Highest Temperature 252 | 45 219 153 230 1 . 229 83 206 252 120 Average Temperature 69 | 17 62 54 89 1 . 121 27 77 94 67 Received Heat Transfer 2094 | . 243 96 369 117 . 24 645 342 126 132 Siege Activations 1 | . . . . . . . . . . 1 Total Turns 3 | . . . . . . . . . . 3 Longest Duration 3 | . . . . . . . . . . 3 Martial Activations . | . . . . . . . . . . . Shielding Activations . | . . . . . . . . . . . Robots Disrupted . | . . . . . . . . . . . Combat Hostiles . | . . . . . . . . . . . Robots Corrupted 18 | . 1 . 3 2 . 6 5 1 . . Combat Hostiles 16 | . 1 . 3 2 . 5 4 1 . . Parts Fried 19 | . 3 . 4 1 . 4 7 . . . Impact Corruptions 42 | . 1 . 10 4 . 17 8 1 1 . Robots Melted 1 | . 1 . . . . . . . . . Combat Hostiles 1 | . 1 . . . . . . . . . Parts Melted 1 | . . . 1 . . . . . . . Heat Transferred 1591 | 185 592 296 444 . . . . . . 74 Parts Sabotaged . | . . . . . . . . . . . Parts Stolen . | . . . . . . . . . . . Parts Stripped . | . . . . . . . . . . . Power Chain Reactions . | . . . . . . . . . . . Alert | -11 -10 -9 -9 -9 -9 -6 -6 -6 -6 -6 ------- Run | Yrd Mat Mat Sto Rec Scr Fac Ext Cet Arc Hub Maximum Alert Level 2 | . . . . . . . 2 1 . . Low Security (%) 91 | 100 100 100 100 100 . 100 76 62 100 100 Level 1 7 | . . . . . . . 21 37 . . Level 2 . | . . . . . . . 1 . . . Level 3 . | . . . . . . . . . . . Level 4 . | . . . . . . . . . . . Level 5 . | . . . . . . . . . . . High Security . | . . . . . . . . . . . Max Security . | . . . . . . . . . . . Peak Influence 405 | 10 181 183 66 40 . 90 405 251 51 . Initial 217 | . . 69 47 4 . . 10 217 51 . Average 64 | 2 44 126 24 3 . 27 114 187 21 . Influence Increases 2885 | 25 377 320 336 69 . 254 1134 290 80 . Destroy 0b10 Robot/C 1860 | . 280 240 180 60 . 200 600 220 80 . Destroy 0b10 Robot/NC 70 | 25 10 5 5 . . 5 15 5 . . Destroy Leader 310 | . 62 42 62 . . 42 92 10 . . Allied During Kill 282 | . . . . . . . 234 48 . . Successful Hack 89 | . 21 . 26 9 . 6 27 . . . Disable Machine 120 | . . 30 45 . . . 45 . . . Destroy Structure 64 | . 4 3 3 . . 1 46 7 . . Partial Spotted 15 | . . . 15 . . . . . . . Lose Combat Pursuer 75 | . . . . . . . 75 . . . Influence Decreases 2885 | 25 212 372 437 81 . 232 767 550 209 . Entered New Map 432 | . . 96 66 8 . . 12 172 78 . Time Decay 1932 | 25 202 246 331 73 . 232 454 238 131 . Lost Part 290 | . 10 30 40 . . . 130 80 . . Lost Ally 231 | . . . . . . . 171 60 . . Squads Dispatched 11 | . 3 . 3 . . 1 3 1 . . Investigation 5 | . 2 . . . . . 2 1 . . Extermination 1 | . . . . . . 1 . . . . Reinforcement 2 | . 1 . . . . . 1 . . . Assault . | . . . . . . . . . . . Garrison 3 | . . . 3 . . . . . . . Intercept . | . . . . . . . . . . . Searches Triggered . | . . . . . . . . . . . Construction Impeded . | . . . . . . . . . . . Haulers Reinforced . | . . . . . . . . . . . Active Scanning Responses . | . . . . . . . . . . . Cargo Convoy Interrupts . | . . . . . . . . . . . Stealth | -11 -10 -9 -9 -9 -9 -6 -6 -6 -6 -6 --------- Run | Yrd Mat Mat Sto Rec Scr Fac Ext Cet Arc Hub Distress Signals 12 | . 2 1 1 . . 2 4 2 . . Communications Jammed . | . . . . . . . . . . . Distress Signals . | . . . . . . . . . . . Times Spotted 124 | . 19 21 10 3 . 16 37 13 4 1 Peak Tracking Total 7 | . 3 7 3 2 . 5 7 5 2 1 Tactical Retreats 3 | . . . . . . . 3 . . . Traps | -11 -10 -9 -9 -9 -9 -6 -6 -6 -6 -6 ------- Run | Yrd Mat Mat Sto Rec Scr Fac Ext Cet Arc Hub Traps Triggered 11 | . 7 . 1 . . 2 1 . . . Indirectly . | . . . . . . . . . . . Trap Hack Attempts . | . . . . . . . . . . . Triggered . | . . . . . . . . . . . Disarmed . | . . . . . . . . . . . Reprogrammed . | . . . . . . . . . . . Reused . | . . . . . . . . . . . Traps Extracted . | . . . . . . . . . . . Installed . | . . . . . . . . . . . Triggered . | . . . . . . . . . . . Machines | -11 -10 -9 -9 -9 -9 -6 -6 -6 -6 -6 ---------- Run | Yrd Mat Mat Sto Rec Scr Fac Ext Cet Arc Hub Machines Disabled 11 | . . 2 3 . . . 6 . . . Max in Single Turn 2 | . . 1 1 . . . 2 . . . Energy Cycler 1 | . . . . . . . 1 . . . Machines Repaired . | . . . . . . . . . . . Machines Dismantled . | . . . . . . . . . . . Machines Sabotaged . | . . . . . . . . . . . Overloaded Fab Kills . | . . . . . . . . . . . Hacking | -11 -10 -9 -9 -9 -9 -6 -6 -6 -6 -6 --------- Run | Yrd Mat Mat Sto Rec Scr Fac Ext Cet Arc Hub Machines Accessed 41 | . 5 2 4 6 8 4 9 3 . . Terminals 30 | . 4 2 3 6 . 3 9 3 . . Fabricators . | . . . . . . . . . . . Repair Stations . | . . . . . . . . . . . Recycling Units 1 | . 1 . . . . . . . . . Scanalyzers 1 | . . . . . . 1 . . . . Garrison Access 1 | . . . 1 . . . . . . . Total Hacks 113 | . 10 4 8 13 38 14 15 11 . . Successful 67 | . 6 2 5 5 38 4 5 2 . . Failed 46 | . 4 2 3 8 . 10 10 9 . . Catastrophic 9 | . . . 1 1 . . 3 4 . . Database Lockouts . | . . . . . . . . . . . Manual 33 | . 10 3 5 8 . . 6 . 1 . Terminals 68 | . 7 4 7 13 . 11 15 11 . . Fabricators . | . . . . . . . . . . . Repair Stations . | . . . . . . . . . . . Recycling Units 3 | . 3 . . . . . . . . . Scanalyzers 3 | . . . . . . 3 . . . . Garrison Access 1 | . . . 1 . . . . . . . Terminal Hacks 46 | . . . 2 1 38 1 2 2 . . Record 39 | . . . . . 37 . . 2 . . Prototype ID Bank 1 | . . . . 1 . . . . . . Open Door 4 | . . . 1 . . 1 2 . . . Locate Traps 1 | . . . 1 . . . . . . . Proto ID Catalog 1 | . . . . . 1 . . . . . Fabricator Hacks . | . . . . . . . . . . . Repair Station Hacks . | . . . . . . . . . . . Recycling Unit Hacks . | . . . . . . . . . . . Scanalyzer 3 | . . . . . . 3 . . . . Retrieve Study 3 | . . . . . . 3 . . . . Garrison Access Hacks 1 | . . . 1 . . . . . . . Unlock Access 1 | . . . 1 . . . . . . . Unauthorized Hacks 15 | . 4 2 2 4 . . 3 . . . Terminals 15 | . 4 2 2 4 . . 3 . . . Assimilate 1 | . . . . . . . 1 . . . Botnet 14 | . 4 2 2 4 . . 2 . . . Fabricators . | . . . . . . . . . . . Repair Stations . | . . . . . . . . . . . Recycling Units . | . . . . . . . . . . . Scanalyzers . | . . . . . . . . . . . Garrison Access . | . . . . . . . . . . . Data Cores Recovered 1 | . . . . . . . 1 . . . Used 1 | . . . . . . . 1 . . . Hacking Detections 23 | . 2 1 2 5 . 3 7 3 . . Full Trace Events 5 | . . . 1 1 . . 2 1 . . Feedback Events . | . . . . . . . . . . . Feedback Blocked . | . . . . . . . . . . . Robot Schematics Acquired . | . . . . . . . . . . . Robots Built . | . . . . . . . . . . . Authchips . | . . . . . . . . . . . Time . | . . . . . . . . . . . Total Robot Build Rating . | . . . . . . . . . . . Part Schematics Acquired . | . . . . . . . . . . . Parts Built . | . . . . . . . . . . . Authchips . | . . . . . . . . . . . Time . | . . . . . . . . . . . Total Part Build Rating . | . . . . . . . . . . . Part Studies Acquired 3 | . . . . . . 3 . . . . Parts Repaired . | . . . . . . . . . . . Time . | . . . . . . . . . . . Parts Recycled . | . . . . . . . . . . . Recycled Matter . | . . . . . . . . . . . Retrieved Matter . | . . . . . . . . . . . Retrieved Components . | . . . . . . . . . . . Parts Scanalyzed . | . . . . . . . . . . . Part Schematics Acquired . | . . . . . . . . . . . Parts Damaged . | . . . . . . . . . . . Bothacking | -11 -10 -9 -9 -9 -9 -6 -6 -6 -6 -6 ------------ Run | Yrd Mat Mat Sto Rec Scr Fac Ext Cet Arc Hub Used RIF Installer . | . . . . . . . . . . . Robots Hacked . | . . . . . . . . . . . Non-combat . | . . . . . . . . . . . Combat . | . . . . . . . . . . . Robot Hacks Applied . | . . . . . . . . . . . Relay Couplers Released . | . . . . . . . . . . . Fabnet Peak Effective % . | . . . . . . . . . . . Robots Rewired 14 | . . . . . . . 14 . . . Allies Hacked . | . . . . . . . . . . . Hacks Repelled . | . . . . . . . . . . . Allies | -11 -10 -9 -9 -9 -9 -6 -6 -6 -6 -6 -------- Run | Yrd Mat Mat Sto Rec Scr Fac Ext Cet Arc Hub Total Allies 18 | . . . . . . . 18 . . . Largest Group 9 | . . . . . . . 9 4 . . Highest-Rated Group 266 | . . . . . . . 266 121 . . Highest-Rated Ally 39 | . . . . . . . 39 39 . . Initial UFD Resources 23 | . . . . . . 23 23 23 23 23 Total Orders . | . . . . . . . . . . . Ally Attacks 198 | . . . . . . . 141 57 . . Total Damage 3484 | . . . . . . . 2542 942 . . Kills 30 | . . . . . . . 21 9 . . Allies Corrupted . | . . . . . . . . . . . Allies Melted 1 | . . . . . . . 1 . . . Intel | -11 -10 -9 -9 -9 -9 -6 -6 -6 -6 -6 ------- Run | Yrd Mat Mat Sto Rec Scr Fac Ext Cet Arc Hub Active Infowar (turns) 1013 | 19 169 362 463 . . . . . . . Terrain 154 | . 154 . . . . . . . . . Seismic 859 | 19 15 362 463 . . . . . . . Robot Analysis Total . | . . . . . . . . . . . Derelict Logs Recovered . | . . . . . . . . . . . Drone Launches . | . . . . . . . . . . . Drone Recoveries . | . . . . . . . . . . . Exploration | -11 -10 -9 -9 -9 -9 -6 -6 -6 -6 -6 ------------- Run | Yrd Mat Mat Sto Rec Scr Fac Ext Cet Arc Hub Turns Passed 9158 | 110 767 531 1029 889 2735 734 1396 510 416 41 Spaces Moved 5879 | 65 374 276 465 686 2218 474 822 275 213 11 Core 8 | 4 4 . . . . . . . . . Treads 693 | . 220 . . . . . . 249 213 11 Legs 4938 | . . 247 465 686 2218 474 822 26 . . Wheels 240 | 61 150 29 . . . . . . . . Hover . | . . . . . . . . . . . Flight . | . . . . . . . . . . . Fastest Speed 50 | 50 80 110 120 120 120 111 115 120 160 160 Average Speed 125 | 78 137 121 121 120 122 116 123 156 160 160 Slowest Speed 250 | 80 250 190 190 190 123 123 190 160 160 160 Overloaded Moves . | . . . . . . . . . . . Propulsion Burnouts . | . . . . . . . . . . . Robots Hopped . | . . . . . . . . . . . Potential Cave-ins 13 | . . . . . . . 13 . . . Cave-ins Triggered . | . . . . . . . . . . . Exploration Rate (%) 53 | 4 70 23 40 98 95 14 82 70 88 6 Regions Visited 10 Branch Regions 7 Pre-discovered Areas 4 | . . . . . 4 . . . . . Known Exits Taken 8 | . . 1 1 1 1 1 1 1 1 . Unknown Exits Taken 2 | 1 1 . . . . . . . . . Scrap Searched 9 | . . . . . 9 . . . . . Spaces Dug 12 | . . . 3 . . 1 8 . . . Terrain Destroyed 61 | . . . 3 . . 1 57 . . . Melee 12 | . . . 3 . . 1 8 . . . Projectile . | . . . . . . . . . . . AOE 49 | . . . . . . . 49 . . . Terrain Rammed . | . . . . . . . . . . . Walls Destroyed . | . . . . . . . . . . . Machines Disabled . | . . . . . . . . . . . Actions | -11 -10 -9 -9 -9 -9 -6 -6 -6 -6 -6 --------- Run | Yrd Mat Mat Sto Rec Scr Fac Ext Cet Arc Hub Total 7152 | 102 540 413 783 727 2252 611 1109 329 265 21 Wait 632 | 15 83 75 206 25 6 94 92 . 36 . Move 5869 | 64 373 275 464 685 2217 473 821 274 212 11 Hop . | . . . . . . . . . . . Pick Up 72 | 7 9 8 7 2 9 6 15 7 2 . Fast Attach 42 | 6 16 1 7 2 . . 7 3 . . Attach 38 | 1 1 6 4 1 . 6 10 8 . 1 Detach 7 | . 1 1 . . . 1 1 3 . . Swap 42 | . 4 8 6 . 6 2 12 4 . . Drop 71 | . 10 7 10 . 14 4 15 9 2 . Fire 101 | 9 42 31 14 . . . 3 . . 2 Melee 197 | . . 1 65 12 . 25 53 21 13 7 Ram . | . . . . . . . . . . . Kick . | . . . . . . . . . . . Crush 1 | . 1 . . . . . . . . . Escape Stasis . | . . . . . . . . . . . Rewire 80 | . . . . . . . 80 . . . Trap . | . . . . . . . . . . . Miscellaneous . | . . . . . . . . . . . Route ------- -11/Scrapyard -10/Materials (discovered 3 exits: *Mat x2 / [*Min]) -9/Materials -9/Storage (discovered 2 exits: *Rec / Gar) -9/Recycling (discovered 2 exits: [*Fac] / *Scr) -9/Scraptown (discovered 2 exits: *Fac x2) -6/Factory (discovered 4 exits: Fac x2 / *Low / *Ext) -6/Extension (discovered 2 exits: *Fac / *Cet) -6/Cetus (discovered 2 exits: *Fac / *Arc) -6/Archives (discovered 3 exits: *Fac / *Hub x2) -6/Hub_04(d) History --------- Turn | Location | Event 8 | -11/Scrapyard | Discovered new exit (range 16) 111 | -11/Scrapyard | Entered Materials 350 | -10/Materials | Build established: Mutant 481 | -10/Materials | Discovered new exit (range 4) 812 | -10/Materials | Discovered new exit (range 13) 859 | -10/Materials | Discovered new exit (range 16) 878 | -10/Materials | Entered another Materials area 878 | -9/Materials | Evolved 2 slots: Propulsion x1, Utility x1 1126 | -9/Materials | Discovered new exit (range 14) 1409 | -9/Materials | Identified exit to Storage 1409 | -9/Materials | Entered Storage 1474 | -9/Storage | Identified exit to Garrison 1564 | -9/Storage | Garrison activated, responded to threat 1935 | -9/Storage | Used back door to open Recycling access 1935 | -9/Storage | Discovered new exit (range 5) 2374 | -9/Storage | Core integrity fell below 50% 2436 | -9/Storage | Identified exit to Recycling 2438 | -9/Storage | Entered Recycling 2869 | -9/Recycling | Lost 3 parts (1p1n1u) 3071 | -9/Recycling | Discovered new exit (range 16) 3293 | -9/Recycling | Scanned before Scraplab entrance 3311 | -9/Recycling | Entered Scraplab 3324 | -9/Recycling | Discovered new exit (range 3) 3325 | -9/Recycling | Identified exit to Scraptown 3327 | -9/Recycling | Entered Scraptown 3329 | -9/Scraptown | System corruption cleaned by C-Scrubber 3656 | -9/Scraptown | Discovered new exit (range 11) 3671 | -9/Scraptown | Identified exit to Factory 3806 | -9/Scraptown | Visited SPCMW 3843 | -9/Scraptown | Visited Bundlers 4244 | -9/Scraptown | Visited Fellowship of the Rings 4272 | -9/Scraptown | Visited Spacefarers 4390 | -9/Scraptown | Visited CR-KLE's Repair Center 4399 | -9/Scraptown | CR-KLE repaired 7 parts 4412 | -9/Scraptown | Visited Cave Peace 4462 | -9/Scraptown | Visited The Evicted 4689 | -9/Scraptown | Visited UFD Registry 4689 | -9/Scraptown | Registered with UFD as "Beamslicer" 4733 | -9/Scraptown | Visited Cartography Club 4762 | -9/Scraptown | Found Surveybot 17 Chip 4892 | -9/Scraptown | Learned location of Lower Caves (-7) 4892 | -9/Scraptown | Learned location of Zion (-6) 4892 | -9/Scraptown | Learned 8 Factory zone layouts 4892 | -9/Scraptown | Learned 4 Access zone layouts 4892 | -9/Scraptown | Learned 8 Lower Caves zone layouts 4892 | -9/Scraptown | Learned 20 Upper Caves zone layouts 4892 | -9/Scraptown | Learned 16 Proximity Caves zone layouts 4892 | -9/Scraptown | Learned Materials emergency access door positions 4892 | -9/Scraptown | Learned location of 3 exits from Lower Caves 4892 | -9/Scraptown | Learned location of 2 exits from Proximity Caves 4939 | -9/Scraptown | Visited Science Testing Area 5001 | -9/Scraptown | Visited Modified Component R&D 5040 | -9/Scraptown | Visited Abandonware Association 5058 | -9/Scraptown | Learned abandonware demo "REPAIR.EXE" 5087 | -9/Scraptown | Visited Scrapoid Research Area 5124 | -9/Scraptown | Visited Scrap Suit Storage 5164 | -9/Scraptown | Visited Curators Association 5216 | -9/Scraptown | Visited Infowarlord's Domain 5224 | -9/Scraptown | Found Exp. Signal Interpreter 5265 | -9/Scraptown | Visited Science Guys 5728 | -9/Scraptown | Found Scrap Suit 6062 | -9/Scraptown | Entered Factory 6062 | -6/Factory | Evolved 6 slots: Power x1, Propulsion x1, Utility x3, Weapon x1 6063 | -6/Factory | Identified exit to Factory 6063 | -6/Factory | Identified exit to Extension 6126 | -6/Factory | Discovered new exit (range 5) 6131 | -6/Factory | Identified exit to Lower Caves 6363 | -6/Factory | Build established: Gladiator 6796 | -6/Factory | Entered Extension 6843 | -6/Extension | Rescued a captive Derelict 6852 | -6/Extension | Rescued a captive Derelict 7337 | -6/Extension | Build established: Commander-Gladiator 7444 | -6/Extension | Spotted B-75 Beast 7480 | -6/Extension | Spotted B-75 Beast 7541 | -6/Extension | Lost 7 parts (1p3n2u1w) 7562 | -6/Extension | Lost 4 allies 7610 | -6/Extension | Rescued a captive Derelict 7672 | -6/Extension | Allies destroyed B-75 Beast 7814 | -6/Extension | Core integrity fell below 50% 7866 | -6/Extension | Energy Cycler disabled 7867 | -6/Extension | Rescued a captive Derelict 7867 | -6/Extension | Rescued a captive Derelict 7947 | -6/Extension | Lost 4 allies 7967 | -6/Extension | Discovered exit to Factory (range 15) 7967 | -6/Extension | Discovered new exit (range 11) 7979 | -6/Extension | Identified exit to Cetus 8192 | -6/Extension | Entered Cetus 8192 | -6/Cetus | Accompanied by 4 allies 8207 | -6/Cetus | Spotted Cetus Guard 8208 | -6/Cetus | Spotted Cetus Guard 8209 | -6/Cetus | Spotted Cetus Guard 8210 | -6/Cetus | Build established: Scavenger-Gladiator 8210 | -6/Cetus | Spotted Cetus Guard 8212 | -6/Cetus | Allies destroyed Cetus Guard 8224 | -6/Cetus | Allies destroyed Cetus Guard 8229 | -6/Cetus | Destroyed Cetus Guard 8239 | -6/Cetus | Allies destroyed Cetus Guard 8268 | -6/Cetus | Lost 4 parts (1p2n1u) 8508 | -6/Cetus | Discovered new exit (range 16) 8531 | -6/Cetus | Identified exit to Archives 8565 | -6/Cetus | Spotted Cetus Guard 8566 | -6/Cetus | Spotted Cetus Guard 8569 | -6/Cetus | Spotted Cetus Guard 8569 | -6/Cetus | Spotted Cetus Guard 8572 | -6/Cetus | Allies destroyed Cetus Guard 8579 | -6/Cetus | Discovered exit to Factory (range 16) 8597 | -6/Cetus | Core integrity fell below 20% 8600 | -6/Cetus | Destroyed Cetus Guard 8611 | -6/Cetus | Destroyed Cetus Guard 8613 | -6/Cetus | Met Revision 17 8638 | -6/Cetus | Lost 3 parts (1p1u1w) 8702 | -6/Cetus | Entered Archives 8850 | -6/Archives | Unable to access archive contents 8942 | -6/Archives | Discovered new exit (range 15) 8966 | -6/Archives | Identified exit to Hub_04(d) 8999 | -6/Archives | Discovered exit to Hub_04(d) (range 14) 9022 | -6/Archives | Discovered exit to Factory (range 15) 9092 | -6/Archives | Unable to access archive contents 9118 | -6/Archives | Entered Hub_04(d) 9118 | -6/Hub_04(d) | Spotted B-75 Beast 9159 | -6/Hub_04(d) | Destroyed by B-75 Beast with Heavy Plasma Cannon Last Messages --------------- 09088_ System corrupted: Substantial component data lost. 09092_ Connecting with Archive Terminal... 09108_ System corrupted: Heat flow error (+128). LOCATION=HUB_04(D) GOAL=ESCAPE 09125_ Chainsword destroyed. 09125_ Identified Adv. Variable Charge Gun. 09139_ B-75 Beast Magnetic Acceleration Cannon severed. 09139_ Mace+ follow-up attack on B-75 Beast. 09139_ Control Node disabled. 09141_ U-05 Engineer builds a Wall. 09142_ Mace+ follow-up attack on B-75 Beast. 09147_ U-05 Engineer builds a Door. 09150_ 9UIMU6SFMV9U9WZ>=F ZTK:U>ID 09151_ U-05 Engineer builds a Wall. 09154_ B-75 Beast Imp. Medium Treads severed. 09154_ Mace+ follow-up attack on B-75 Beast. 09156_ Ripper destroyed. 09157_ Activated siege mode. [Achievement: Immobile And Lovin' It] Map ----- +----------------------------------------------------+ | ?????????????????????????????????????????????????? | | ?????????????????????????????????????????????????? | | ?????????????????????????????????????????????????? | | ?????????????????????????????????????????????????? | | ?????????????????????????????????????????????????? | | ?????????????????????????????????????????????????? | | ?????????????????????????????????????????????????? | | ?????????????????????????????????????????????????? | | ?????????????????????????????????????????????????? | | ?????????????????????????????????????????????????? | | ??????????????? ???????????????????????????????? | | ??????????????+ ???????????????????????????????? | | ??????????????# ???????????????????????????????? | | ??????????????# #??????????????????????????????? | | ??????????????# #??????????????????????????????? | | ??????????????# #???#+##+#?????????????????????? | | ??????????????# #???# #?????????????????????? | | ??????????????# #???# #?????????????????????? | | ??????????????# #???# #?????????????????????? | | ??????????????# #???# #?????????????????????? | | ??????????????# #???# #?????????????????????? | | ?????????????## #???# #?????????????????????? | | ???##+######### ##### #?????????????????????? | | ??? ###???????????????????? | | ??????? ^ % BB #???????????????????? | | ??????????????# [@BB #???????????????????? | | ??????????????# ###???????????????????? | | ??????????????#####^ !! #?????????????????????? | | ?????????????? # !! #????????????????????? | | ??????????? " " " + ! ?????????????????? | | ?????????? " " " # ??????????????? | | ??????????? " " " # * #??????????????? | | ??????????? ############### #??????????????? | | ?????????? " "?" "#??????????????#??????????????? | | ?????????#??" ??" #??????????????????????????????? | | ????????????"??? ???????????????????????????????? | | ??????????????? ????????????????????????????????? | | ???????????????#?????????????????????????????????? | | ?????????????????????????????????????????????????? | | ?????????????????????????????????????????????????? | | ?????????????????????????????????????????????????? | | ?????????????????????????????????????????????????? | | ?????????????????????????????????????????????????? | | ?????????????????????????????????????????????????? | | ?????????????????????????????????????????????????? | | ?????????????????????????????????????????????????? | | ?????????????????????????????????????????????????? | | ?????????????????????????????????????????????????? | | ?????????????????????????????????????????????????? | | ?????????????????????????????????????????????????? | +----------------------------------------------------+ Best States ------------- Heat Dissipation 56 Energy Generation 38 Energy Capacity 490 Matter Stores 300 Matter Capacity 300 Sight Range 16 Terrain Scan Range 14 Terrain Scan Density 10 Armor Coverage 450 Phase Shifting 5 Evasion (%) 55 Melee Accuracy 6 Recoil Reduction 4 Item Schematics ----------------- None Robot Schematics ------------------ None Fabricated ------------ Nothing Repaired ---------- Nothing Studied --------- Imp. Aluminum Leg | -6/Factory | Hacked Hvy. Mace | -6/Factory | Hacked Mace | -6/Factory | Hacked Alien Tech Used ----------------- None Achievements -------------- Immobile And Lovin' It Challenges ------------ None Game ------ Seed SystemConcussiveBotcube Manual? 0 Play Time 01:28:04 Cumulative 76.3 hours Start 2026.07.18 @ 13:27:40 End 2026.07.18 @ 20:11:50 Sessions 3 Manual Loads 0 Difficulty Rogue Special Mode None Game No. 43 Rogue 43 Adventurer 0 Explorer 0 Win Type - Total 0 Types 0/0/0/0/0/0/0/0/0/0 Lore% 36 Gallery% 46 Achievement% 33 Wizard Run 0 Options --------- Layout 0 ASCII 0 Keyboard 1 Movement Vi Keybinds 0 Fullscreen 1 Font 24/Smallcaps Map View 76x50 Zoom Use 0% Tactical HUD 1 Map Filters NONE Filters NONE Steam 1 RUN: 9078f313-ee30-41a6-aea8-f3f94157aae0